[Event "Early-Titled-Tuesday-Blitz-November-28-2023"]
[Site "Chess.com"]
[Date "2023.11.28"]
[Round "7"]
[White "tusplingher"]
[Black "Matols"]
[Result "0-1"]
[WhiteElo "2497"]
[BlackElo "2369"]
[TimeControl "180+1"]
[EndTime "9:26:53 PST"]
[Termination "Matols won by checkmate"]

1. e4 {[%clk 0:03:00.9]} 1... c6 {[%clk 0:03:00.3]} 2. Ne2 {[%clk 0:02:59.2]}
2... d5 {[%clk 0:03:00.6]} 3. e5 {[%clk 0:02:59.3]} 3... c5 {[%clk 0:02:56.9]}
4. d4 {[%clk 0:02:59]} 4... Nc6 {[%clk 0:02:45.3]} 5. c3 {[%clk 0:02:58.3]} 5...
Bf5 {[%clk 0:02:40.2]} 6. dxc5 {[%clk 0:02:57.8]} 6... Nxe5 {[%clk 0:02:37.5]}
7. Nd4 {[%clk 0:02:57.5]} 7... Bd7 {[%clk 0:02:36.5]} 8. Qh5 {[%clk 0:02:55.9]}
8... Qc7 {[%clk 0:02:26.4]} 9. Nb5 {[%clk 0:01:59.5]} 9... Qxc5 {[%clk
0:02:23.4]} 10. b4 {[%clk 0:01:47.5]} 10... Qb6 {[%clk 0:02:15.8]} 11. Be3
{[%clk 0:01:40]} 11... Qf6 {[%clk 0:01:48.7]} 12. Bd4 {[%clk 0:01:32]} 12... g5
{[%clk 0:01:33.2]} 13. Nc7+ {[%clk 0:01:20.6]} 13... Kd8 {[%clk 0:01:32.5]} 14.
Nxa8 {[%clk 0:01:21.5]} 14... Bg4 {[%clk 0:01:31.6]} 15. Qxg4 {[%clk 0:01:15.6]}
15... Nxg4 {[%clk 0:01:30.9]} 16. Bxf6 {[%clk 0:01:14.8]} 16... N8xf6 {[%clk
0:01:31]} 17. Nd2 {[%clk 0:00:57.1]} 17... e6 {[%clk 0:01:28.9]} 18. h3 {[%clk
0:00:56.5]} 18... Ne5 {[%clk 0:01:28.1]} 19. Be2 {[%clk 0:00:54]} 19... Bd6
{[%clk 0:01:27]} 20. Nf3 {[%clk 0:00:52.9]} 20... Kd7 {[%clk 0:01:26.5]} 21.
Nxe5+ {[%clk 0:00:52.1]} 21... Bxe5 {[%clk 0:01:27.4]} 22. Bb5+ {[%clk
0:00:51.9]} 22... Ke7 {[%clk 0:01:24.8]} 23. O-O {[%clk 0:00:44.4]} 23... Rxa8
{[%clk 0:01:23.3]} 24. Rac1 {[%clk 0:00:43.1]} 24... a6 {[%clk 0:01:22.7]} 25.
Bd3 {[%clk 0:00:42.8]} 25... Rc8 {[%clk 0:01:21.2]} 26. c4 {[%clk 0:00:42.7]}
26... dxc4 {[%clk 0:01:17.6]} 27. Rxc4 {[%clk 0:00:36.6]} 27... Rd8 {[%clk
0:01:17.3]} 28. Rd1 {[%clk 0:00:33.2]} 28... h5 {[%clk 0:01:10.5]} 29. Be2
{[%clk 0:00:29.8]} 29... Nd5 {[%clk 0:01:05.7]} 30. Bf3 {[%clk 0:00:28.4]} 30...
h4 {[%clk 0:00:59.5]} 31. Bxd5 {[%clk 0:00:15.7]} 31... exd5 {[%clk 0:01:00.4]}
32. Rc2 {[%clk 0:00:16.1]} 32... Kf6 {[%clk 0:00:59.7]} 33. Rcd2 {[%clk
0:00:16]} 33... d4 {[%clk 0:00:59.8]} 34. Kf1 {[%clk 0:00:16]} 34... Rc8 {[%clk
0:00:59.6]} 35. Rd3 {[%clk 0:00:16.1]} 35... Rc2 {[%clk 0:00:58.4]} 36. R1d2
{[%clk 0:00:15.9]} 36... Rc1+ {[%clk 0:00:58.5]} 37. Ke2 {[%clk 0:00:16.2]}
37... Rg1 {[%clk 0:00:58.4]} 38. Kf3 {[%clk 0:00:16.2]} 38... Kf5 {[%clk
0:00:55.7]} 39. Rc2 {[%clk 0:00:16.1]} 39... f6 {[%clk 0:00:53.7]} 40. Rc5
{[%clk 0:00:15.9]} 40... Rb1 {[%clk 0:00:48.2]} 41. Rxd4 {[%clk 0:00:13.3]}
41... Rb2 {[%clk 0:00:42.1]} 42. Rd3 {[%clk 0:00:06.5]} 42... Rxb4 {[%clk
0:00:40.7]} 43. Ke2 {[%clk 0:00:05.7]} 43... Rb2+ {[%clk 0:00:39]} 44. Rd2
{[%clk 0:00:05.5]} 44... Rb1 {[%clk 0:00:39.3]} 45. Rcc2 {[%clk 0:00:04.7]}
45... Rg1 {[%clk 0:00:38.3]} 46. Kf3 {[%clk 0:00:04.7]} 46... Rb1 {[%clk
0:00:34.2]} 47. Rd3 {[%clk 0:00:04.9]} 47... b5 {[%clk 0:00:32.1]} 48. Rb3
{[%clk 0:00:05.1]} 48... Rd1 {[%clk 0:00:30.2]} 49. Ra3 {[%clk 0:00:05.4]} 49...
Rd6 {[%clk 0:00:25]} 50. Rb3 {[%clk 0:00:04.2]} 50... Kg6 {[%clk 0:00:21.6]} 51.
Re3 {[%clk 0:00:04.5]} 51... Kf5 {[%clk 0:00:19.5]} 52. Rce2 {[%clk 0:00:04.8]}
52... Rc6 {[%clk 0:00:18.4]} 53. Re4 {[%clk 0:00:04.5]} 53... a5 {[%clk
0:00:17.7]} 54. R4e3 {[%clk 0:00:03.9]} 54... b4 {[%clk 0:00:17.7]} 55. Rd3
{[%clk 0:00:03.9]} 55... a4 {[%clk 0:00:16.4]} 56. Re4 {[%clk 0:00:03.5]} 56...
Bc3 {[%clk 0:00:14.5]} 57. Rd5+ {[%clk 0:00:02.8]} 57... Kg6 {[%clk 0:00:14.5]}
58. Ra5 {[%clk 0:00:02.9]} 58... a3 {[%clk 0:00:14.1]} 59. Rb5 {[%clk
0:00:02.8]} 59... Rd6 {[%clk 0:00:14.3]} 60. Ke2 {[%clk 0:00:02.3]} 60... Rd2+
{[%clk 0:00:13.8]} 61. Kf3 {[%clk 0:00:03]} 61... Rxa2 {[%clk 0:00:13.9]} 62.
Re6 {[%clk 0:00:03.7]} 62... Rd2 {[%clk 0:00:12.6]} 63. Ra6 {[%clk 0:00:03.7]}
63... Rd3+ {[%clk 0:00:12.7]} 64. Ke4 {[%clk 0:00:03.7]} 64... Rd2 {[%clk
0:00:12.7]} 65. Ke3 {[%clk 0:00:04.3]} 65... Rb2 {[%clk 0:00:12.2]} 66. Kd3
{[%clk 0:00:04.4]} 66... a2 {[%clk 0:00:12.3]} 67. Kc4 {[%clk 0:00:05.1]} 67...
Rxf2 {[%clk 0:00:11.8]} 68. Kb3 {[%clk 0:00:05.1]} 68... Rxg2 {[%clk 0:00:12]}
69. Rxa2 {[%clk 0:00:04.3]} 69... Rxa2 {[%clk 0:00:11.6]} 70. Kxa2 {[%clk
0:00:04.8]} 70... f5 {[%clk 0:00:11.9]} 71. Kb3 {[%clk 0:00:05.1]} 71... g4
{[%clk 0:00:12.1]} 72. hxg4 {[%clk 0:00:04.8]} 72... fxg4 {[%clk 0:00:13]} 73.
Rd5 {[%clk 0:00:05]} 73... h3 {[%clk 0:00:13.2]} 74. Kc2 {[%clk 0:00:05.7]}
74... h2 {[%clk 0:00:13.1]} 75. Rd1 {[%clk 0:00:06.4]} 75... g3 {[%clk
0:00:13.4]} 76. Kd3 {[%clk 0:00:07.3]} 76... g2 {[%clk 0:00:13.6]} 77. Ke4
{[%clk 0:00:07.1]} 77... h1=Q {[%clk 0:00:13.7]} 78. Rd6+ {[%clk 0:00:07.3]}
78... Kg5 {[%clk 0:00:13.3]} 79. Rd5+ {[%clk 0:00:07.5]} 79... Kg4 {[%clk
0:00:13.9]} 80. Kd3 {[%clk 0:00:07.6]} 80... g1=Q {[%clk 0:00:13.9]} 81. Kc4
{[%clk 0:00:08.5]} 81... Qf1+ {[%clk 0:00:14]} 82. Kc5 {[%clk 0:00:07.9]} 82...
Qxd5+ {[%clk 0:00:14.9]} 83. Kxd5 {[%clk 0:00:08.4]} 83... Qf4 {[%clk
0:00:15.1]} 84. Ke6 {[%clk 0:00:08.9]} 84... Qg5 {[%clk 0:00:15.2]} 85. Kf7
{[%clk 0:00:09.1]} 85... Qh6 {[%clk 0:00:15.4]} 86. Kg8 {[%clk 0:00:09.6]} 86...
Qg7# {[%clk 0:00:15]} 0-1

[Event "Early-Titled-Tuesday-Blitz-November-28-2023"]
[Site "Chess.com"]
[Date "2023.11.28"]
[Round "7"]
[White "Bodhanas"]
[Black "Witty_Alien"]
[Result "0-1"]
[WhiteElo "2200"]
[BlackElo "2236"]
[TimeControl "180+1"]
[EndTime "9:27:14 PST"]
[Termination "Witty_Alien won by resignation"]

1. d4 {[%clk 0:02:59.5]} 1... e5 {[%clk 0:02:59.3]} 2. dxe5 {[%clk 0:02:59]}
2... d6 {[%clk 0:02:59.2]} 3. Nf3 {[%clk 0:02:56.9]} 3... Nc6 {[%clk 0:02:59.1]}
4. exd6 {[%clk 0:02:55.1]} 4... Bxd6 {[%clk 0:02:59.3]} 5. Nc3 {[%clk
0:02:54.5]} 5... Nf6 {[%clk 0:02:59.7]} 6. e3 {[%clk 0:02:54.2]} 6... Bg4 {[%clk
0:02:59.3]} 7. Be2 {[%clk 0:02:53.6]} 7... Qd7 {[%clk 0:03:00]} 8. h3 {[%clk
0:02:52.6]} 8... Bf5 {[%clk 0:03:00.1]} 9. Nd4 {[%clk 0:02:48.4]} 9... Nxd4
{[%clk 0:02:26.5]} 10. exd4 {[%clk 0:02:47.7]} 10... O-O-O {[%clk 0:02:25.5]}
11. Be3 {[%clk 0:02:45.7]} 11... Rhe8 {[%clk 0:02:19.8]} 12. Bd3 {[%clk
0:02:38]} 12... Rxe3+ {[%clk 0:02:16.6]} 13. fxe3 {[%clk 0:02:36.6]} 13... Bg3+
{[%clk 0:02:17]} 14. Kd2 {[%clk 0:02:32.2]} 14... Kb8 {[%clk 0:02:12.6]} 15. Qf3
{[%clk 0:02:31.3]} 15... Bxd3 {[%clk 0:02:06.6]} 16. cxd3 {[%clk 0:02:29.3]}
16... Bh4 {[%clk 0:01:52.9]} 17. Kc2 {[%clk 0:02:26.1]} 17... Bg5 {[%clk
0:01:49.7]} 18. Rad1 {[%clk 0:02:08]} 18... a6 {[%clk 0:01:47.5]} 19. Rhf1
{[%clk 0:02:07.1]} 19... Re8 {[%clk 0:01:43.1]} 20. Ne4 {[%clk 0:02:03.2]} 20...
Nxe4 {[%clk 0:01:15.3]} 21. dxe4 {[%clk 0:02:02.7]} 21... f6 {[%clk 0:01:10.9]}
22. Kb1 {[%clk 0:01:58]} 22... Re6 {[%clk 0:01:07.1]} 23. Qf5 {[%clk 0:01:49.4]}
23... Qe8 {[%clk 0:01:05.6]} 24. d5 {[%clk 0:01:42.6]} 24... Rxe4 {[%clk
0:01:04.1]} 25. d6 {[%clk 0:01:42.6]} 25... cxd6 {[%clk 0:01:04.4]} 26. Rxd6
{[%clk 0:01:42.2]} 26... Rxe3 {[%clk 0:01:04.2]} 27. Rfd1 {[%clk 0:01:41.1]}
27... Re1 {[%clk 0:01:00.2]} 28. Qd3 {[%clk 0:01:34.1]} 28... Rxd1+ {[%clk
0:00:58.5]} 29. Qxd1 {[%clk 0:01:34.1]} 29... f5 {[%clk 0:00:50.5]} 30. a3
{[%clk 0:01:28.7]} 30... Bf6 {[%clk 0:00:45.5]} 31. Qb3 {[%clk 0:01:22.1]} 31...
Ka7 {[%clk 0:00:19.7]} 32. Re6 {[%clk 0:01:18.5]} 32... Qd7 {[%clk 0:00:18]} 33.
Ka2 {[%clk 0:01:14.8]} 33... Bd4 {[%clk 0:00:16.9]} 34. Re2 {[%clk 0:01:10.1]}
34... Qc6 {[%clk 0:00:08.8]} 35. Rc2 {[%clk 0:01:06.9]} 35... Qe4 {[%clk
0:00:07.8]} 36. Qc4 {[%clk 0:01:04.7]} 36... Qe5 {[%clk 0:00:05.4]} 37. Rd2
{[%clk 0:01:02.3]} 37... Bb6 {[%clk 0:00:04.7]} 38. Rd5 {[%clk 0:00:59.3]} 38...
Qe6 {[%clk 0:00:04.3]} 39. Qb3 {[%clk 0:00:53.8]} 39... f4 {[%clk 0:00:03.6]}
40. Rd3 {[%clk 0:00:50.7]} 40... Qe4 {[%clk 0:00:03.7]} 41. Rf3 {[%clk
0:00:49.1]} 41... Be3 {[%clk 0:00:02.9]} 42. Qc3 {[%clk 0:00:40.2]} 42... Qd5+
{[%clk 0:00:02.1]} 43. Qb3 {[%clk 0:00:37.4]} 43... Qe4 {[%clk 0:00:02.5]} 44.
a4 {[%clk 0:00:35.3]} 44... a5 {[%clk 0:00:02.1]} 45. Qb5 {[%clk 0:00:31]} 45...
b6 {[%clk 0:00:02.2]} 46. Qd7+ {[%clk 0:00:30.6]} 46... Ka6 {[%clk 0:00:02.1]}
47. Qc8+ {[%clk 0:00:30.6]} 47... Ka7 {[%clk 0:00:02]} 48. Qd7+ {[%clk 0:00:28]}
48... Ka8 {[%clk 0:00:02.1]} 49. Qb5 {[%clk 0:00:20.6]} 49... Kb7 {[%clk
0:00:01.9]} 50. Rf1 {[%clk 0:00:20.2]} 50... Qxg2 {[%clk 0:00:01.8]} 51. Rd1
{[%clk 0:00:20.3]} 51... Bc5 {[%clk 0:00:01.1]} 52. Rd7+ {[%clk 0:00:19.4]}
52... Kc8 {[%clk 0:00:01.7]} 53. Ra7 {[%clk 0:00:18.3]} 53... Qd5+ {[%clk
0:00:01.3]} 54. Qb3 {[%clk 0:00:18.2]} 54... Qxb3+ {[%clk 0:00:01.4]} 55. Kxb3
{[%clk 0:00:18.2]} 55... f3 {[%clk 0:00:01.4]} 56. Rf7 {[%clk 0:00:18.8]} 56...
f2 {[%clk 0:00:01.9]} 57. Kc4 {[%clk 0:00:19.3]} 57... Kd8 {[%clk 0:00:02]} 58.
Kd3 {[%clk 0:00:19.7]} 58... Ke8 {[%clk 0:00:02.4]} 59. Rf3 {[%clk 0:00:20]}
59... Ke7 {[%clk 0:00:02.6]} 60. Ke2 {[%clk 0:00:20.6]} 60... Ke6 {[%clk
0:00:03.1]} 61. h4 {[%clk 0:00:16.6]} 61... h6 {[%clk 0:00:03.4]} 62. h5 {[%clk
0:00:16.6]} 62... Bd4 {[%clk 0:00:03.8]} 63. b3 {[%clk 0:00:15.9]} 63... Kd5
{[%clk 0:00:03.7]} 64. Kd3 {[%clk 0:00:15.8]} 64... Ke5 {[%clk 0:00:01.4]} 65.
Rf8 {[%clk 0:00:14.4]} 65... Bc5 {[%clk 0:00:01]} 66. Rf3 {[%clk 0:00:14.5]}
66... Kd5 {[%clk 0:00:01.3]} 67. Rf5+ {[%clk 0:00:14.1]} 67... Ke6 {[%clk
0:00:01.7]} 68. Ke4 {[%clk 0:00:14.6]} 68... Kd6 {[%clk 0:00:01.7]} 69. Rf3
{[%clk 0:00:14]} 69... Ke6 {[%clk 0:00:02]} 70. Rf4 {[%clk 0:00:13.2]} 70... Kd6
{[%clk 0:00:02.4]} 71. Kf5 {[%clk 0:00:13.5]} 71... Kd5 {[%clk 0:00:03]} 72. Kg6
{[%clk 0:00:13.7]} 72... Bd4 {[%clk 0:00:03]} 73. Kf5 {[%clk 0:00:12.6]} 73...
Kc5 {[%clk 0:00:03.1]} 74. Ke4 {[%clk 0:00:11.6]} 74... Bf6 {[%clk 0:00:02.4]}
75. Rf5+ {[%clk 0:00:11.7]} 75... Kb4 {[%clk 0:00:03.3]} 76. Rxf2 {[%clk
0:00:10.1]} 76... Kxb3 {[%clk 0:00:03.9]} 77. Kd5 {[%clk 0:00:10.5]} 77... Kxa4
{[%clk 0:00:04.3]} 78. Kc6 {[%clk 0:00:11.2]} 78... b5 {[%clk 0:00:04.7]} 79.
Rf4+ {[%clk 0:00:10.9]} 79... b4 {[%clk 0:00:05.2]} 80. Kd5 {[%clk 0:00:10.8]}
80... Ka3 {[%clk 0:00:04.7]} 81. Kc4 {[%clk 0:00:10.7]} 81... a4 {[%clk
0:00:04.2]} 82. Kb5 {[%clk 0:00:10.4]} 82... Bc3 {[%clk 0:00:02.6]} 83. Rc4
{[%clk 0:00:10.5]} 83... Kb3 {[%clk 0:00:03]} 84. Rf4 {[%clk 0:00:10.6]} 84...
a3 {[%clk 0:00:03.3]} 85. Rf1 {[%clk 0:00:11.3]} 85... a2 {[%clk 0:00:03.7]} 86.
Kc5 {[%clk 0:00:11.8]} 86... a1=Q {[%clk 0:00:03.9]} 87. Rxa1 {[%clk 0:00:11.9]}
87... Bxa1 {[%clk 0:00:04.8]} 88. Kb5 {[%clk 0:00:12.2]} 88... Bc3 {[%clk
0:00:04.3]} 89. Kc5 {[%clk 0:00:12.7]} 89... Kc2 {[%clk 0:00:05.2]} 90. Kb5
{[%clk 0:00:13.3]} 90... b3 {[%clk 0:00:06.1]} 91. Kc5 {[%clk 0:00:14]} 91... b2
{[%clk 0:00:07]} 92. Kd5 {[%clk 0:00:14.6]} 92... b1=Q {[%clk 0:00:07.9]} 93.
Ke6 {[%clk 0:00:15.3]} 93... Qg1 {[%clk 0:00:07.5]} 94. Ke7 {[%clk 0:00:15.9]}
94... Qg5+ {[%clk 0:00:08]} 95. Kf7 {[%clk 0:00:16.6]} 95... Qxh5+ {[%clk
0:00:08.5]} 96. Kg8 {[%clk 0:00:16.8]} 96... g5 {[%clk 0:00:07.5]} 97. Kh7
{[%clk 0:00:17]} 97... Qf7+ {[%clk 0:00:07.9]} 98. Kxh6 {[%clk 0:00:16.7]} 98...
Bg7+ {[%clk 0:00:08.5]} 99. Kxg5 {[%clk 0:00:16.5]} 99... Bf8 {[%clk 0:00:07.4]}
0-1

[Event "Early-Titled-Tuesday-Blitz-November-28-2023"]
[Site "Chess.com"]
[Date "2023.11.28"]
[Round "7"]
[White "RobertJFischer71"]
[Black "sofaceindisguise"]
[Result "1-0"]
[WhiteElo "2636"]
[BlackElo "2796"]
[TimeControl "180+1"]
[EndTime "9:27:24 PST"]
[Termination "RobertJFischer71 won on time"]

1. e4 {[%clk 0:03:00.9]} 1... c5 {[%clk 0:02:59.4]} 2. Nf3 {[%clk 0:03:01.3]}
2... e6 {[%clk 0:02:59.7]} 3. d4 {[%clk 0:03:01.8]} 3... cxd4 {[%clk 0:03:00.6]}
4. Nxd4 {[%clk 0:03:02.7]} 4... a6 {[%clk 0:03:01.3]} 5. Nc3 {[%clk 0:03:03.2]}
5... Qc7 {[%clk 0:02:59.9]} 6. g3 {[%clk 0:03:03.5]} 6... Nf6 {[%clk 0:02:59.7]}
7. Bg2 {[%clk 0:03:04.1]} 7... d6 {[%clk 0:03:00.4]} 8. O-O {[%clk 0:03:04.5]}
8... Be7 {[%clk 0:03:01]} 9. f4 {[%clk 0:02:58.5]} 9... O-O {[%clk 0:03:00.5]}
10. Be3 {[%clk 0:02:58.4]} 10... Nbd7 {[%clk 0:02:59]} 11. g4 {[%clk 0:02:57.9]}
11... Nb6 {[%clk 0:02:51.5]} 12. g5 {[%clk 0:02:48]} 12... Nfd7 {[%clk
0:02:51.3]} 13. Qe2 {[%clk 0:02:47.2]} 13... Nc4 {[%clk 0:02:35]} 14. b3 {[%clk
0:02:38.3]} 14... Nxe3 {[%clk 0:02:35.1]} 15. Qxe3 {[%clk 0:02:39.2]} 15... g6
{[%clk 0:01:59.2]} 16. Rad1 {[%clk 0:02:31.8]} 16... b5 {[%clk 0:01:39.7]} 17.
e5 {[%clk 0:02:20.9]} 17... d5 {[%clk 0:01:37.1]} 18. Bxd5 {[%clk 0:02:03.7]}
18... exd5 {[%clk 0:01:26.8]} 19. Nxd5 {[%clk 0:02:04.6]} 19... Qd8 {[%clk
0:01:27.5]} 20. Nc6 {[%clk 0:01:57.6]} 20... Bc5 {[%clk 0:01:24.7]} 21. Qxc5
{[%clk 0:01:57.7]} 21... Nxc5 {[%clk 0:01:25]} 22. Nxd8 {[%clk 0:01:58.3]} 22...
Bh3 {[%clk 0:01:17.1]} 23. Nf6+ {[%clk 0:01:44.7]} 23... Kg7 {[%clk 0:01:16.1]}
24. Rf3 {[%clk 0:01:36.1]} 24... Bf5 {[%clk 0:01:16]} 25. Nc6 {[%clk 0:01:32.7]}
25... Ne6 {[%clk 0:00:56]} 26. c3 {[%clk 0:01:17.9]} 26... h6 {[%clk 0:00:37.7]}
27. gxh6+ {[%clk 0:01:04.4]} 27... Kxh6 {[%clk 0:00:38]} 28. Ne7 {[%clk
0:01:03.1]} 28... Rfd8 {[%clk 0:00:31]} 29. Nxf5+ {[%clk 0:00:54.7]} 29... gxf5
{[%clk 0:00:31]} 30. Rdf1 {[%clk 0:00:38.8]} 30... Kg7 {[%clk 0:00:18.9]} 31.
R1f2 {[%clk 0:00:20.5]} 31... Rac8 {[%clk 0:00:18.9]} 32. Kg2 {[%clk 0:00:19]}
32... Kf8 {[%clk 0:00:19.5]} 33. Rh3 {[%clk 0:00:17.6]} 33... Ke7 {[%clk
0:00:19.4]} 34. Rh5 {[%clk 0:00:17.6]} 34... Rxc3 {[%clk 0:00:19]} 35. Rxf5
{[%clk 0:00:17.4]} 35... Rd1 {[%clk 0:00:15.4]} 36. Ne4 {[%clk 0:00:16.6]} 36...
Rcc1 {[%clk 0:00:15.7]} 37. Nd6 {[%clk 0:00:16.2]} 37... Rg1+ {[%clk 0:00:16.2]}
38. Kh3 {[%clk 0:00:16.6]} 38... Nd8 {[%clk 0:00:15.1]} 39. Rd2 {[%clk
0:00:11.9]} 39... Rc3+ {[%clk 0:00:15.2]} 40. Kh4 {[%clk 0:00:11.8]} 40... Rg8
{[%clk 0:00:13.6]} 41. Ne4 {[%clk 0:00:10.5]} 41... Ne6 {[%clk 0:00:13.1]} 42.
Nf6 {[%clk 0:00:07.9]} 42... Rh8+ {[%clk 0:00:13.3]} 43. Kg4 {[%clk 0:00:07.2]}
43... Nf8 {[%clk 0:00:09.7]} 44. Ne4 {[%clk 0:00:06.1]} 44... Rc1 {[%clk
0:00:08.9]} 45. Ng5 {[%clk 0:00:03.8]} 45... Rg1+ {[%clk 0:00:09.2]} 46. Kf3
{[%clk 0:00:04.4]} 46... Rf1+ {[%clk 0:00:04.1]} 47. Ke2 {[%clk 0:00:04.5]}
47... Rh1 {[%clk 0:00:04.2]} 48. Rxf7+ {[%clk 0:00:04.7]} 48... Ke8 {[%clk
0:00:04.9]} 49. Ra7 {[%clk 0:00:05]} 49... Rh3 {[%clk 0:00:05.2]} 50. Ra8+
{[%clk 0:00:01.1]} 50... Ke7 {[%clk 0:00:05.8]} 51. Ra7+ {[%clk 0:00:02]} 51...
Ke8 {[%clk 0:00:06.5]} 52. Rd4 {[%clk 0:00:02.1]} 52... R1xh2+ {[%clk
0:00:06.4]} 53. Kd1 {[%clk 0:00:02.5]} 53... Rh1+ {[%clk 0:00:06.6]} 54. Kc2
{[%clk 0:00:02.7]} 54... R1h2+ {[%clk 0:00:07.5]} 55. Rd2 {[%clk 0:00:03.1]}
55... Ng6 {[%clk 0:00:06.8]} 56. Rxh2 {[%clk 0:00:02.8]} 56... Rxh2+ {[%clk
0:00:07.7]} 57. Kd3 {[%clk 0:00:03.4]} 57... Nxf4+ {[%clk 0:00:08.6]} 58. Ke4
{[%clk 0:00:04.3]} 58... Ne2 {[%clk 0:00:08.8]} 59. Kf5 {[%clk 0:00:04.3]} 59...
Rf2+ {[%clk 0:00:08.6]} 60. Ke6 {[%clk 0:00:04.5]} 60... Nd4+ {[%clk 0:00:09.5]}
61. Kd5 {[%clk 0:00:05]} 61... Nc2 {[%clk 0:00:09.4]} 62. Ra8+ {[%clk
0:00:05.5]} 62... Kd7 {[%clk 0:00:09.6]} 63. Ra7+ {[%clk 0:00:06.4]} 63... Kc8
{[%clk 0:00:09.7]} 64. Ne4 {[%clk 0:00:07.2]} 64... Kb8 {[%clk 0:00:09.9]} 65.
Rxa6 {[%clk 0:00:06.7]} 65... Re2 {[%clk 0:00:09.1]} 66. Nd6 {[%clk 0:00:06.4]}
66... Nb4+ {[%clk 0:00:09.5]} 67. Kc5 {[%clk 0:00:04.5]} 67... Nxa6+ {[%clk
0:00:10.1]} 68. Kxb5 {[%clk 0:00:05.4]} 68... Nc7+ {[%clk 0:00:10.7]} 69. Kc6
{[%clk 0:00:05.8]} 69... Rxa2 {[%clk 0:00:11.3]} 70. Nc4 {[%clk 0:00:04.9]}
70... Rc2 {[%clk 0:00:10.9]} 71. Kd6 {[%clk 0:00:04.4]} 71... Rc3 {[%clk
0:00:11.5]} 72. e6 {[%clk 0:00:04.4]} 72... Rxb3 {[%clk 0:00:09.8]} 73. e7
{[%clk 0:00:04.2]} 73... Rd3+ {[%clk 0:00:10.4]} 74. Kc6 {[%clk 0:00:04.1]}
74... Rd1 {[%clk 0:00:06.1]} 75. Nd6 {[%clk 0:00:04.3]} 75... Re1 {[%clk
0:00:04.6]} 76. Kd7 {[%clk 0:00:04.8]} 76... Rd1 {[%clk 0:00:05]} 77. Kc6 {[%clk
0:00:04.8]} 77... Rc1+ {[%clk 0:00:03.2]} 78. Kd7 {[%clk 0:00:05.3]} 78... Rh1
{[%clk 0:00:04]} 79. Kc6 {[%clk 0:00:03.9]} 79... Rh8 {[%clk 0:00:03.5]} 80. Kd7
{[%clk 0:00:04.5]} 80... Rh7 {[%clk 0:00:04.1]} 81. Kd8 {[%clk 0:00:04.1]} 81...
Rh8+ {[%clk 0:00:02.7]} 82. Kd7 {[%clk 0:00:04.6]} 1-0

[Event "Early-Titled-Tuesday-Blitz-November-28-2023"]
[Site "Chess.com"]
[Date "2023.11.28"]
[Round "8"]
[White "Let_it_be_1"]
[Black "koncheto"]
[Result "1-0"]
[WhiteElo "2670"]
[BlackElo "2521"]
[TimeControl "180+1"]
[EndTime "9:29:59 PST"]
[Termination "Let_it_be_1 won by resignation"]

1. e4 {[%clk 0:03:00.9]} 1... c5 {[%clk 0:02:57.5]} 2. Nf3 {[%clk 0:03:00.7]}
2... d6 {[%clk 0:02:57.1]} 3. d4 {[%clk 0:03:00.9]} 3... cxd4 {[%clk 0:02:58]}
4. Nxd4 {[%clk 0:03:01.2]} 4... Nf6 {[%clk 0:02:58.9]} 5. Nc3 {[%clk 0:03:01.2]}
5... Nc6 {[%clk 0:02:59.5]} 6. Be2 {[%clk 0:03:01.2]} 6... e6 {[%clk 0:02:59]}
7. O-O {[%clk 0:03:00.5]} 7... Be7 {[%clk 0:02:58]} 8. Be3 {[%clk 0:03:00.4]}
8... O-O {[%clk 0:02:58.4]} 9. f4 {[%clk 0:03:00.4]} 9... a6 {[%clk 0:02:57.9]}
10. a4 {[%clk 0:03:00.2]} 10... Qc7 {[%clk 0:02:58.1]} 11. Kh1 {[%clk
0:03:00.5]} 11... Nxd4 {[%clk 0:02:57.4]} 12. Qxd4 {[%clk 0:03:00.3]} 12... e5
{[%clk 0:02:58.3]} 13. Qd3 {[%clk 0:03:00.4]} 13... Bd7 {[%clk 0:02:49.1]} 14.
Rad1 {[%clk 0:02:48.3]} 14... Rac8 {[%clk 0:02:48.2]} 15. fxe5 {[%clk
0:02:44.6]} 15... dxe5 {[%clk 0:02:46.2]} 16. Rxf6 {[%clk 0:02:44.8]} 16... Bxf6
{[%clk 0:02:47]} 17. Qxd7 {[%clk 0:02:44.3]} 17... Rfd8 {[%clk 0:02:38.1]} 18.
Qxc7 {[%clk 0:02:43.9]} 18... Rxd1+ {[%clk 0:02:39]} 19. Bxd1 {[%clk 0:02:41.2]}
19... Rxc7 {[%clk 0:02:39.9]} 20. Nd5 {[%clk 0:02:25]} 20... Rc4 {[%clk
0:02:39.6]} 21. b3 {[%clk 0:02:25]} 21... Rxe4 {[%clk 0:02:39.4]} 22. Bf3 {[%clk
0:02:24.9]} 22... Rh4 {[%clk 0:02:35.3]} 23. g3 {[%clk 0:02:20.5]} 23... Rh3
{[%clk 0:02:35.4]} 24. Bg4 {[%clk 0:02:10.1]} 1-0

[Event "Early-Titled-Tuesday-Blitz-November-28-2023"]
[Site "Chess.com"]
[Date "2023.11.28"]
[Round "8"]
[White "Emp3rador"]
[Black "sokidze"]
[Result "0-1"]
[WhiteElo "2582"]
[BlackElo "2756"]
[TimeControl "180+1"]
[EndTime "9:30:16 PST"]
[Termination "sokidze won by resignation"]

1. e4 {[%clk 0:01:22]} 1... c6 {[%clk 0:02:56.4]} 2. d4 {[%clk 0:01:22.1]} 2...
d5 {[%clk 0:02:56.7]} 3. exd5 {[%clk 0:01:23]} 3... cxd5 {[%clk 0:02:57]} 4. Bd3
{[%clk 0:01:23.8]} 4... Nc6 {[%clk 0:02:53.4]} 5. c3 {[%clk 0:01:23.3]} 5... Nf6
{[%clk 0:02:53.5]} 6. h3 {[%clk 0:01:23.5]} 6... e5 {[%clk 0:02:53]} 7. dxe5
{[%clk 0:01:22.9]} 7... Nxe5 {[%clk 0:02:53.9]} 8. Be2 {[%clk 0:01:23.6]} 8...
Bc5 {[%clk 0:02:51.9]} 9. Bf4 {[%clk 0:01:22.2]} 9... Ng6 {[%clk 0:02:45]} 10.
Bg5 {[%clk 0:01:19]} 10... Bxf2+ {[%clk 0:02:43.6]} 11. Kxf2 {[%clk 0:01:18.1]}
11... Ne4+ {[%clk 0:02:43.7]} 12. Ke1 {[%clk 0:01:17.4]} 12... Qxg5 {[%clk
0:02:42.8]} 0-1

[Event "Early-Titled-Tuesday-Blitz-November-28-2023"]
[Site "Chess.com"]
[Date "2023.11.28"]
[Round "8"]
[White "Hikaru"]
[Black "Grandelicious"]
[Result "1-0"]
[WhiteElo "3219"]
[BlackElo "2939"]
[TimeControl "180+1"]
[EndTime "9:30:19 PST"]
[Termination "Hikaru won by resignation"]

1. g3 {[%clk 0:03:00.9]} 1... c5 {[%clk 0:02:58.5]} 2. c4 {[%clk 0:03:00.6]}
2... g6 {[%clk 0:02:58.7]} 3. Bg2 {[%clk 0:03:00.3]} 3... Bg7 {[%clk 0:02:59.3]}
4. e3 {[%clk 0:03:01.1]} 4... Nc6 {[%clk 0:02:59.2]} 5. Ne2 {[%clk 0:02:58.9]}
5... e6 {[%clk 0:02:51.2]} 6. d4 {[%clk 0:02:55.1]} 6... cxd4 {[%clk 0:02:52.1]}
7. exd4 {[%clk 0:02:55.7]} 7... d5 {[%clk 0:02:51.2]} 8. cxd5 {[%clk 0:02:53.8]}
8... exd5 {[%clk 0:02:52.1]} 9. Nbc3 {[%clk 0:02:54.3]} 9... Nge7 {[%clk
0:02:52.8]} 10. O-O {[%clk 0:02:54.2]} 10... O-O {[%clk 0:02:53.4]} 11. Be3
{[%clk 0:02:52.9]} 11... Be6 {[%clk 0:02:35.2]} 12. Nf4 {[%clk 0:02:49.1]} 12...
Nf5 {[%clk 0:02:29.7]} 13. Nfxd5 {[%clk 0:02:48.6]} 13... Ncxd4 {[%clk
0:02:21.4]} 14. Bf4 {[%clk 0:02:40.9]} 14... Rc8 {[%clk 0:02:19]} 15. h4 {[%clk
0:02:36.7]} 15... h6 {[%clk 0:02:08.1]} 16. Re1 {[%clk 0:02:33.1]} 16... Bxd5
{[%clk 0:02:04]} 17. Bxd5 {[%clk 0:02:26.7]} 17... Rxc3 {[%clk 0:01:52.7]} 18.
bxc3 {[%clk 0:02:26.8]} 18... Qxd5 {[%clk 0:01:52.7]} 19. cxd4 {[%clk
0:02:27.5]} 19... Nxd4 {[%clk 0:01:53.3]} 20. Re3 {[%clk 0:02:27.5]} 20... Nf3+
{[%clk 0:01:49.1]} 21. Rxf3 {[%clk 0:02:26.5]} 1-0